[Event "12ème open de Salon"]
[Site "Salon de Provence, France"]
[Date "2022.07.13"]
[Round "7.1"]
[White "Marcellier, Lucie"]
[Black "Lalic, Bogdan"]
[Result "0-1"]
[TimeControl "1 h 30 min + 30 s"]
[WhiteElo "1734"]
[BlackElo "2412"]

1. d4 {[%clk 01:30:57]} {[%emt 00:00:03]} d5 {[%clk 01:29:27]} {[%emt
00:01:33]} 2. Bf4 {[%clk 01:31:17]} {[%emt 00:00:11]} e6 {[%clk 01:29:43]}
{[%emt 00:00:14]} 3. e3 {[%clk 01:31:33]} {[%emt 00:00:14]} Nf6 {[%clk
01:29:58]} {[%emt 00:00:15]} 4. Nf3 {[%clk 01:31:52]} {[%emt 00:00:11]} Bd6
{[%clk 01:30:19]} {[%emt 00:00:09]} 5. Bg3 {[%clk 01:32:01]} {[%emt 00:00:21]}
c5 {[%clk 01:30:37]} {[%emt 00:00:12]} 6. c3 {[%clk 01:32:14]} {[%emt
00:00:17]} Qc7 {[%clk 01:30:54]} {[%emt 00:00:13]} 7. Nbd2 {[%clk 01:31:26]}
{[%emt 00:01:18]} Nbd7 {[%clk 01:31:12]} {[%emt 00:00:11]} 8. Bd3 {[%clk
01:30:40]} {[%emt 00:01:17]} e5 {[%clk 01:31:14]} {[%emt 00:00:28]} 9. dxe5
{[%clk 01:28:35]} {[%emt 00:02:34]} Nxe5 {[%clk 01:31:39]} {[%emt 00:00:06]} 10.
Nxe5 {[%clk 01:25:21]} {[%emt 00:03:44]} Bxe5 {[%clk 01:32:03]} {[%emt
00:00:06]} 11. Bxe5 {[%clk 01:25:45]} {[%emt 00:00:06]} Qxe5 {[%clk 01:32:28]}
{[%emt 00:00:05]} 12. Nf3 {[%clk 01:26:08]} {[%emt 00:00:07]} Qe7 {[%clk
01:31:55]} {[%emt 00:01:03]} 13. O-O {[%clk 01:21:52]} {[%emt 00:04:47]} O-O
{[%clk 01:32:15]} {[%emt 00:00:09]} 14. Qc2 {[%clk 01:18:55]} {[%emt 00:03:27]}
b6 {[%clk 01:29:34]} {[%emt 00:03:11]} 15. Rae1 {[%clk 01:12:11]} {[%emt
00:07:14]} Bb7 {[%clk 01:27:32]} {[%emt 00:02:31]} 16. Nh4 {[%clk 01:10:51]}
{[%emt 00:01:51]} g6 {[%clk 01:27:45]} {[%emt 00:00:17]} 17. Nf3 {[%clk
01:09:43]} {[%emt 00:01:39]} Rad8 {[%clk 01:24:16]} {[%emt 00:03:58]} 18. Qa4
{[%clk 01:07:40]} {[%emt 00:02:33]} a6 {[%clk 01:23:45]} {[%emt 00:01:00]} 19.
Qh4 {[%clk 01:05:23]} {[%emt 00:02:47]} Kg7 {[%clk 01:21:34]} {[%emt 00:02:41]}
20. Nd2 {[%clk 00:56:06]} {[%emt 00:09:48]} Rfe8 {[%clk 01:21:08]} {[%emt
00:00:55]} 21. f3 {[%clk 00:54:18]} {[%emt 00:02:19]} Rd6 {[%clk 01:17:20]}
{[%emt 00:04:18]} 22. Re2 {[%clk 00:50:57]} {[%emt 00:03:51]} Re6 {[%clk
01:13:53]} {[%emt 00:03:56]} 23. Rfe1 {[%clk 00:50:44]} {[%emt 00:00:44]} b5
{[%clk 01:10:03]} {[%emt 00:04:20]} 24. g4 {[%clk 00:43:28]} {[%emt 00:07:46]}
b4 {[%clk 01:05:42]} {[%emt 00:04:51]} 25. cxb4 {[%clk 00:41:33]} {[%emt
00:02:26]} c4 {[%clk 01:06:06]} {[%emt 00:00:06]} 26. Bb1 {[%clk 00:39:29]}
{[%emt 00:02:34]} Qxb4 {[%clk 01:06:23]} {[%emt 00:00:13]} 27. Nf1 {[%clk
00:38:26]} {[%emt 00:01:33]} h6 {[%clk 01:01:53]} {[%emt 00:05:00]} 28. Qf2
{[%clk 00:37:25]} {[%emt 00:01:30]} d4 {[%clk 00:58:11]} {[%emt 00:04:12]} 29.
e4 {[%clk 00:31:49]} {[%emt 00:06:06]} d3 {[%clk 00:58:36]} {[%emt 00:00:05]}
30. Rd2 {[%clk 00:31:55]} {[%emt 00:00:24]} Bxe4 {[%clk 00:56:28]} {[%emt
00:02:38]} 31. Red1 {[%clk 00:28:36]} {[%emt 00:03:49]} Bb7 {[%clk 00:55:06]}
{[%emt 00:01:51]} 32. Ng3 {[%clk 00:27:27]} {[%emt 00:01:39]} Re3 {[%clk
00:53:41]} {[%emt 00:01:54]} 33. b3 {[%clk 00:25:21]} {[%emt 00:02:37]} Rxf3
{[%clk 00:52:13]} {[%emt 00:01:56]} 34. Qd4 {[%clk 00:25:17]} {[%emt 00:00:36]}
Re1+ {[%clk 00:51:04]} {[%emt 00:01:38]} 35. Rxe1 {[%clk 00:21:57]} {[%emt
00:03:51]} Qxd2 {[%clk 00:50:35]} {[%emt 00:00:58]} 0-1

[Event "12ème open de Salon"]
[Site "Salon de Provence, France"]
[Date "2022.07.13"]
[Round "7.3"]
[White "Chaumet, Etienne"]
[Black "Figier, Anthony"]
[Result "0-1"]
[TimeControl "1 h 30 min + 30 s"]
[WhiteElo "1809"]
[BlackElo "1977"]

1. e4 {[%clk 01:30:53]} {[%emt 00:00:06]} Nf6 {[%clk 01:30:50]} {[%emt
00:00:10]} 2. e5 {[%clk 01:31:13]} {[%emt 00:00:11]} Nd5 {[%clk 01:31:16]}
{[%emt 00:00:04]} 3. d4 {[%clk 01:31:32]} {[%emt 00:00:10]} d6 {[%clk
01:31:42]} {[%emt 00:00:04]} 4. c4 {[%clk 01:31:52]} {[%emt 00:00:10]} Nb6
{[%clk 01:32:04]} {[%emt 00:00:08]} 5. exd6 {[%clk 01:32:14]} {[%emt 00:00:08]}
cxd6 {[%clk 01:32:30]} {[%emt 00:00:04]} 6. Nc3 {[%clk 01:32:29]} {[%emt
00:00:15]} g6 {[%clk 01:32:55]} {[%emt 00:00:06]} 7. Be3 {[%clk 01:32:42]}
{[%emt 00:00:16]} Bg7 {[%clk 01:33:22]} {[%emt 00:00:04]} 8. Rc1 {[%clk
01:32:51]} {[%emt 00:00:21]} O-O {[%clk 01:33:48]} {[%emt 00:00:04]} 9. b3
{[%clk 01:33:13]} {[%emt 00:00:08]} d5 {[%clk 01:34:15]} {[%emt 00:00:03]} 10.
c5 {[%clk 01:32:09]} {[%emt 00:01:34]} e5 {[%clk 01:34:44]} {[%emt 00:00:01]}
11. cxb6 {[%clk 01:24:19]} {[%emt 00:08:19]} Nc6 {[%clk 01:35:10]} {[%emt
00:00:05]} 12. Bb5 {[%clk 01:13:52]} {[%emt 00:10:57]} exd4 {[%clk 01:33:26]}
{[%emt 00:02:14]} 13. Bxc6 {[%clk 01:11:41]} {[%emt 00:02:41]} dxe3 {[%clk
01:33:31]} {[%emt 00:00:25]} 14. Bxd5 {[%clk 01:07:43]} {[%emt 00:04:27]} Be6
{[%clk 01:28:13]} {[%emt 00:05:48]} 15. Bf3 {[%clk 00:52:45]} {[%emt 00:15:29]}
exf2+ {[%clk 01:12:13]} {[%emt 00:16:31]} 16. Kxf2 {[%clk 00:50:39]} {[%emt
00:02:36]} Qxb6+ {[%clk 01:12:31]} {[%emt 00:00:12]} 17. Kf1 {[%clk 00:49:11]}
{[%emt 00:01:58]} Rfd8 {[%clk 01:11:54]} {[%emt 00:01:07]} 18. Qe1 {[%clk
00:44:15]} {[%emt 00:05:26]} Bh6 {[%clk 01:12:10]} {[%emt 00:00:14]} 19. Rc2
{[%clk 00:42:01]} {[%emt 00:02:43]} Rac8 {[%clk 01:10:53]} {[%emt 00:01:47]} 20.
Nge2 {[%clk 00:37:57]} {[%emt 00:04:34]} Qa5 {[%clk 00:57:55]} {[%emt
00:13:29]} 21. Qh4 {[%clk 00:30:10]} {[%emt 00:08:17]} Bg7 {[%clk 00:51:57]}
{[%emt 00:06:27]} 22. Qa4 {[%clk 00:25:51]} {[%emt 00:04:49]} Qc5 {[%clk
00:33:50]} {[%emt 00:18:38]} 23. Be4 {[%clk 00:16:55]} {[%emt 00:09:26]} Bxc3
{[%clk 00:24:47]} {[%emt 00:09:33]} 24. Nxc3 {[%clk 00:16:32]} {[%emt
00:00:52]} Qe3 {[%clk 00:25:12]} {[%emt 00:00:05]} 25. Re2 {[%clk 00:04:18]}
{[%emt 00:12:45]} Qc1+ {[%clk 00:21:40]} {[%emt 00:04:02]} 26. Re1 {[%clk
00:04:20]} {[%emt 00:00:28]} Qxc3 {[%clk 00:22:03]} {[%emt 00:00:07]} 27. Bf3
{[%clk 00:02:55]} {[%emt 00:01:55]} Re8 {[%clk 00:19:08]} {[%emt 00:03:25]} 28.
Kf2 {[%clk 00:02:19]} {[%emt 00:01:06]} Qc5+ {[%clk 00:19:12]} {[%emt
00:00:26]} 29. Kg3 {[%clk 00:02:08]} {[%emt 00:00:41]} Qg5+ {[%clk 00:19:20]}
{[%emt 00:00:21]} 30. Kf2 {[%clk 00:02:25]} {[%emt 00:00:14]} Rc2+ {[%clk
00:19:04]} {[%emt 00:00:46]} 31. Re2 {[%clk 00:02:24]} {[%emt 00:00:31]} Rxe2+
{[%clk 00:18:00]} {[%emt 00:01:35]} 32. Bxe2 {[%clk 00:02:39]} {[%emt
00:00:14]} Qc5+ {[%clk 00:18:06]} {[%emt 00:00:25]} 33. Kg3 {[%clk 00:02:40]}
{[%emt 00:00:28]} Qe5+ {[%clk 00:17:23]} {[%emt 00:01:13]} 34. Kf2 {[%clk
00:02:37]} {[%emt 00:00:34]} Bxb3 {[%clk 00:17:20]} {[%emt 00:00:33]} 35. Qb5
{[%clk 00:01:37]} {[%emt 00:01:30]} Qe3+ {[%clk 00:17:13]} {[%emt 00:00:37]} 36.
Kf1 {[%clk 00:01:39]} {[%emt 00:00:28]} Bxa2 {[%clk 00:17:14]} {[%emt
00:00:28]} 37. h4 {[%clk 00:01:59]} {[%emt 00:00:11]} a6 {[%clk 00:16:30]}
{[%emt 00:01:14]} 38. Qb2 {[%clk 00:01:39]} {[%emt 00:00:50]} Bc4 {[%clk
00:16:41]} {[%emt 00:00:19]} 0-1

[Event "12ème open de Salon"]
[Site "Salon de Provence, France"]
[Date "2022.07.13"]
[Round "7.4"]
[White "Tramarin, Matteo"]
[Black "Guillaume, Jean-Tristan"]
[Result "0-1"]
[TimeControl "1 h 30 min + 30 s"]
[WhiteElo "1501"]
[BlackElo "1575"]

1. c4 {[%clk 01:30:54]} {[%emt 00:00:06]} Nf6 {[%clk 01:30:59]} {[%emt
00:00:02]} 2. Nc3 {[%clk 01:31:12]} {[%emt 00:00:11]} c5 {[%clk 01:31:22]}
{[%emt 00:00:07]} 3. g3 {[%clk 01:31:01]} {[%emt 00:00:41]} d5 {[%clk
01:31:30]} {[%emt 00:00:23]} 4. cxd5 {[%clk 01:30:44]} {[%emt 00:00:46]} Nxd5
{[%clk 01:31:52]} {[%emt 00:00:07]} 5. Bg2 {[%clk 01:31:07]} {[%emt 00:00:07]}
Nc7 {[%clk 01:32:11]} {[%emt 00:00:12]} 6. d3 {[%clk 01:30:05]} {[%emt
00:01:32]} e5 {[%clk 01:31:50]} {[%emt 00:00:51]} 7. Nf3 {[%clk 01:29:23]}
{[%emt 00:01:12]} Nc6 {[%clk 01:32:14]} {[%emt 00:00:06]} 8. O-O {[%clk
01:28:49]} {[%emt 00:01:04]} Be7 {[%clk 01:32:39]} {[%emt 00:00:04]} 9. Bd2
{[%clk 01:28:02]} {[%emt 00:01:17]} O-O {[%clk 01:31:19]} {[%emt 00:01:51]} 10.
Rc1 {[%clk 01:28:00]} {[%emt 00:00:32]} Bd7 {[%clk 01:25:18]} {[%emt 00:06:31]}
11. Ne4 {[%clk 01:27:04]} {[%emt 00:01:26]} b6 {[%clk 01:25:04]} {[%emt
00:00:44]} 12. Bc3 {[%clk 01:26:03]} {[%emt 00:01:31]} f6 {[%clk 01:25:05]}
{[%emt 00:00:29]} 13. a3 {[%clk 01:22:19]} {[%emt 00:04:13]} Rc8 {[%clk
01:25:17]} {[%emt 00:00:18]} 14. b4 {[%clk 01:19:51]} {[%emt 00:02:59]} cxb4
{[%clk 01:22:47]} {[%emt 00:03:00]} 15. axb4 {[%clk 01:19:27]} {[%emt
00:00:54]} Kh8 {[%clk 01:19:50]} {[%emt 00:03:27]} 16. Rb1 {[%clk 01:17:26]}
{[%emt 00:02:31]} Nd5 {[%clk 01:14:10]} {[%emt 00:06:09]} 17. b5 {[%clk
01:15:03]} {[%emt 00:02:53]} Nxc3 {[%clk 01:14:33]} {[%emt 00:00:07]} 18. Nxc3
{[%clk 01:15:01]} {[%emt 00:00:31]} Na5 {[%clk 01:14:28]} {[%emt 00:00:35]} 19.
Ne4 {[%clk 01:11:21]} {[%emt 00:04:11]} Qe8 {[%clk 01:09:34]} {[%emt 00:05:24]}
20. d4 {[%clk 01:09:56]} {[%emt 00:01:54]} f5 {[%clk 01:08:30]} {[%emt
00:01:33]} 21. Ned2 {[%clk 01:08:29]} {[%emt 00:01:57]} e4 {[%clk 01:07:44]}
{[%emt 00:01:16]} 22. Ne5 {[%clk 01:08:04]} {[%emt 00:00:56]} Bxb5 {[%clk
01:07:25]} {[%emt 00:00:50]} 23. Re1 {[%clk 01:05:03]} {[%emt 00:03:31]} Ba4
{[%clk 01:06:37]} {[%emt 00:01:17]} 24. Qc1 {[%clk 01:02:07]} {[%emt 00:03:26]}
Rxc1 {[%clk 01:06:42]} {[%emt 00:00:25]} 25. Rexc1 {[%clk 01:02:32]} {[%emt
00:00:05]} Bd6 {[%clk 01:04:36]} {[%emt 00:02:36]} 26. Ndc4 {[%clk 01:01:51]}
{[%emt 00:01:10]} Nxc4 {[%clk 01:04:41]} {[%emt 00:00:25]} 27. Nxc4 {[%clk
01:02:11]} {[%emt 00:00:10]} Bb8 {[%clk 01:04:41]} {[%emt 00:00:30]} 28. e3
{[%clk 01:01:07]} {[%emt 00:01:34]} Bd7 {[%clk 01:02:11]} {[%emt 00:03:00]} 29.
Bf1 {[%clk 00:59:46]} {[%emt 00:01:51]} Be6 {[%clk 00:57:43]} {[%emt 00:04:57]}
30. Na3 {[%clk 00:58:22]} {[%emt 00:01:55]} g6 {[%clk 00:56:00]} {[%emt
00:02:14]} 31. Nb5 {[%clk 00:57:33]} {[%emt 00:01:19]} Qd7 {[%clk 00:55:11]}
{[%emt 00:01:19]} 32. Bc4 {[%clk 00:54:03]} {[%emt 00:04:00]} Bxc4 {[%clk
00:55:22]} {[%emt 00:00:19]} 33. Rxc4 {[%clk 00:54:24]} {[%emt 00:00:08]} Rc8
{[%clk 00:55:29]} {[%emt 00:00:23]} 34. Rcb4 {[%clk 00:51:26]} {[%emt
00:03:28]} a6 {[%clk 00:54:27]} {[%emt 00:01:32]} 35. Na3 {[%clk 00:51:05]}
{[%emt 00:00:51]} Bd6 {[%clk 00:53:06]} {[%emt 00:01:51]} 36. R4b3 {[%clk
00:50:47]} {[%emt 00:00:48]} b5 {[%clk 00:51:59]} {[%emt 00:01:38]} 37. Kg2
{[%clk 00:48:37]} {[%emt 00:02:41]} Bxa3 {[%clk 00:52:13]} {[%emt 00:00:16]} 38.
Rxa3 {[%clk 00:48:59]} {[%emt 00:00:07]} Qb7 {[%clk 00:51:34]} {[%emt
00:01:09]} 39. Rba1 {[%clk 00:48:22]} {[%emt 00:01:07]} Ra8 {[%clk 00:51:07]}
{[%emt 00:00:55]} 40. Ra5 {[%clk 00:48:27]} {[%emt 00:00:26]} Kg7 {[%clk
00:50:51]} {[%emt 00:00:47]} 41. h4 {[%clk 00:48:13]} {[%emt 00:00:44]} Qb6
{[%clk 00:50:06]} {[%emt 00:01:15]} 42. R5a2 {[%clk 00:47:53]} {[%emt
00:00:50]} a5 {[%clk 00:50:17]} {[%emt 00:00:19]} 43. Rc2 {[%clk 00:47:02]}
{[%emt 00:01:21]} b4 {[%clk 00:49:51]} {[%emt 00:00:57]} 44. Rac1 {[%clk
00:46:36]} {[%emt 00:00:56]} Ra7 {[%clk 00:49:32]} {[%emt 00:00:48]} 45. Rc6
{[%clk 00:45:24]} {[%emt 00:01:42]} Qb5 {[%clk 00:46:01]} {[%emt 00:04:01]} 46.
R1c5 {[%clk 00:45:10]} {[%emt 00:00:45]} Qd3 {[%clk 00:46:03]} {[%emt
00:00:27]} 47. d5 {[%clk 00:44:58]} {[%emt 00:00:42]} Rd7 {[%clk 00:44:31]}
{[%emt 00:02:01]} 48. Rxa5 {[%clk 00:42:39]} {[%emt 00:02:50]} Rxd5 {[%clk
00:44:51]} {[%emt 00:00:10]} 49. Ra4 {[%clk 00:42:25]} {[%emt 00:00:43]} b3
{[%clk 00:43:46]} {[%emt 00:01:35]} 50. Rb4 {[%clk 00:42:37]} {[%emt 00:00:18]}
Rb5 {[%clk 00:44:02]} {[%emt 00:00:14]} 51. Rd4 {[%clk 00:40:44]} {[%emt
00:02:23]} b2 {[%clk 00:43:51]} {[%emt 00:00:41]} 0-1

[Event "12ème open de Salon"]
[Site "Salon de Provence, France"]
[Date "2022.07.13"]
[Round "7.5"]
[White "Piquemal, Maxence"]
[Black "Colandrea, Sauveur"]
[Result "1-0"]
[TimeControl "1 h 30 min + 30 s"]
[WhiteElo "1668"]
[BlackElo "1619"]

1. d4 {[%clk 01:30:51]} {[%emt 00:00:08]} d5 {[%clk 01:30:52]} {[%emt
00:00:07]} 2. c4 {[%clk 01:31:15]} {[%emt 00:00:06]} Nc6 {[%clk 01:31:18]}
{[%emt 00:00:05]} 3. Nf3 {[%clk 01:31:02]} {[%emt 00:00:43]} Bg4 {[%clk
01:31:19]} {[%emt 00:00:29]} 4. e3 {[%clk 01:29:38]} {[%emt 00:01:55]} e5
{[%clk 01:30:40]} {[%emt 00:01:09]} 5. dxe5 {[%clk 01:25:12]} {[%emt 00:04:56]}
Nxe5 {[%clk 01:27:06]} {[%emt 00:04:03]} 6. cxd5 {[%clk 01:19:10]} {[%emt
00:06:32]} Nf6 {[%clk 01:27:11]} {[%emt 00:00:25]} 7. Qa4+ {[%clk 01:11:28]}
{[%emt 00:08:12]} Bd7 {[%clk 01:26:37]} {[%emt 00:01:04]} 8. Qb3 {[%clk
01:09:58]} {[%emt 00:02:01]} Bd6 {[%clk 01:23:04]} {[%emt 00:04:03]} 9. Nxe5
{[%clk 01:00:00]} {[%emt 00:10:28]} Bxe5 {[%clk 01:23:16]} {[%emt 00:00:17]} 10.
Nd2 {[%clk 00:51:11]} {[%emt 00:09:19]} O-O {[%emt 00:02:34]} 11. Nf3 {[%emt
00:04:34]} Bd6 {[%clk 01:12:17]} {[%emt 00:04:22]} 12. Bd2 {[%clk 00:42:02]}
{[%emt 00:09:40]} Ne4 {[%clk 01:09:12]} {[%emt 00:03:33]} 13. Bb4 {[%clk
00:36:23]} {[%emt 00:06:10]} Qf6 {[%clk 01:04:29]} {[%emt 00:05:12]} 14. Bd3
{[%clk 00:28:59]} {[%emt 00:07:55]} Bxb4+ {[%clk 01:01:28]} {[%emt 00:03:31]}
15. Qxb4 {[%clk 00:29:26]} {[%emt 00:00:03]} Ng5 {[%clk 00:53:56]} {[%emt
00:08:02]} 16. Nxg5 {[%clk 00:21:35]} {[%emt 00:08:21]} Qxg5 {[%clk 00:53:19]}
{[%emt 00:01:07]} 17. Qe4 {[%clk 00:17:26]} {[%emt 00:04:39]} g6 {[%clk
00:53:27]} {[%emt 00:00:22]} 18. h4 {[%clk 00:16:42]} {[%emt 00:01:14]} Qf6
{[%clk 00:52:54]} {[%emt 00:01:03]} 19. Qb4 {[%clk 00:15:57]} {[%emt 00:01:15]}
h5 {[%clk 00:46:20]} {[%emt 00:07:03]} 20. Rc1 {[%clk 00:10:37]} {[%emt
00:05:50]} Rfc8 {[%clk 00:42:11]} {[%emt 00:04:40]} 21. Be4 {[%clk 00:06:10]}
{[%emt 00:04:58]} a5 {[%clk 00:39:51]} {[%emt 00:02:48]} 22. Qc3 {[%clk
00:05:37]} {[%emt 00:01:04]} Qe7 {[%clk 00:38:37]} {[%emt 00:01:44]} 23. Bf3
{[%clk 00:03:13]} {[%emt 00:02:55]} c6 {[%clk 00:33:18]} {[%emt 00:05:48]} 24.
Qc5 {[%clk 00:03:03]} {[%emt 00:00:40]} Qf6 {[%clk 00:30:16]} {[%emt 00:03:31]}
25. Qc3 {[%clk 00:03:12]} {[%emt 00:00:22]} Qf5 {[%clk 00:27:16]} {[%emt
00:03:29]} 26. e4 {[%clk 00:02:31]} {[%emt 00:01:13]} Qf4 {[%clk 00:27:09]}
{[%emt 00:00:35]} 27. g3 {[%clk 00:02:24]} {[%emt 00:00:38]} Qd6 {[%clk
00:26:44]} {[%emt 00:00:54]} 28. e5 {[%clk 00:02:20]} {[%emt 00:00:36]} Re8
{[%clk 00:26:57]} {[%emt 00:00:16]} 29. O-O {[%clk 00:02:05]} {[%emt 00:00:45]}
Rxe5 {[%clk 00:26:16]} {[%emt 00:01:10]} 30. dxc6 {[%clk 00:02:16]} {[%emt
00:00:20]} Bxc6 {[%clk 00:21:04]} {[%emt 00:05:42]} 31. Rfd1 {[%clk 00:01:56]}
{[%emt 00:00:50]} Qf6 {[%clk 00:16:39]} {[%emt 00:04:55]} 32. Bxc6 {[%clk
00:01:52]} {[%emt 00:00:35]} Rc8 {[%clk 00:16:48]} {[%emt 00:00:20]} 33. f4
{[%clk 00:01:02]} {[%emt 00:01:20]} 1-0

[Event "12ème open de Salon"]
[Site "Salon de Provence, France"]
[Date "2022.07.13"]
[Round "7.6"]
[White "Bonchristiani, Pierre"]
[Black "Roganova, Maxime"]
[Result "1-0"]
[TimeControl "1 h 30 min + 30 s"]
[WhiteElo "1382"]
[BlackElo "1471"]

1. e4 {[%clk 01:30:39]} {[%emt 00:00:20]} c5 {[%clk 01:30:53]} {[%emt
00:00:07]} 2. Nf3 {[%clk 01:30:59]} {[%emt 00:00:10]} d6 {[%clk 01:31:17]}
{[%emt 00:00:06]} 3. Bb5+ {[%clk 01:31:14]} {[%emt 00:00:15]} Nd7 {[%clk
01:31:41]} {[%emt 00:00:07]} 4. c4 {[%clk 01:30:58]} {[%emt 00:00:46]} Ngf6
{[%clk 01:31:27]} {[%emt 00:00:44]} 5. Nc3 {[%clk 01:31:07]} {[%emt 00:00:21]}
a6 {[%clk 01:30:29]} {[%emt 00:01:27]} 6. Ba4 {[%clk 01:31:28]} {[%emt
00:00:09]} e5 {[%clk 01:30:15]} {[%emt 00:00:44]} 7. O-O {[%clk 01:29:32]}
{[%emt 00:02:26]} Be7 {[%clk 01:29:20]} {[%emt 00:01:25]} 8. h3 {[%clk
01:27:03]} {[%emt 00:02:59]} O-O {[%clk 01:27:07]} {[%emt 00:02:43]} 9. d3
{[%clk 01:24:45]} {[%emt 00:02:48]} Nb6 {[%clk 01:25:56]} {[%emt 00:01:41]} 10.
Bc2 {[%clk 01:22:53]} {[%emt 00:02:22]} Be6 {[%clk 01:24:16]} {[%emt 00:02:09]}
11. Nh2 {[%clk 01:16:13]} {[%emt 00:07:12]} Nfd7 {[%clk 01:20:14]} {[%emt
00:04:32]} 12. b3 {[%clk 01:13:03]} {[%emt 00:03:40]} Qe8 {[%clk 01:17:58]}
{[%emt 00:02:46]} 13. Qe1 {[%clk 01:08:01]} {[%emt 00:05:32]} f5 {[%clk
01:15:40]} {[%emt 00:02:48]} 14. Bd1 {[%clk 01:01:41]} {[%emt 00:06:51]} Qg6
{[%clk 01:09:58]} {[%emt 00:06:11]} 15. Kh1 {[%clk 01:00:24]} {[%emt 00:01:47]}
f4 {[%clk 01:08:09]} {[%emt 00:02:19]} 16. Bg4 {[%clk 00:57:25]} {[%emt
00:03:29]} Bxg4 {[%clk 01:02:54]} {[%emt 00:05:46]} 17. Nxg4 {[%clk 00:56:55]}
{[%emt 00:01:01]} Qe6 {[%clk 00:54:10]} {[%emt 00:09:13]} 18. Qe2 {[%clk
00:50:54]} {[%emt 00:06:31]} f3 {[%clk 00:53:33]} {[%emt 00:01:07]} 19. gxf3
{[%clk 00:42:29]} {[%emt 00:08:56]} h5 {[%clk 00:53:38]} {[%emt 00:00:24]} 20.
Nh2 {[%clk 00:41:40]} {[%emt 00:01:19]} Qxh3 {[%clk 00:53:31]} {[%emt
00:00:37]} 21. Rg1 {[%clk 00:38:12]} {[%emt 00:03:59]} Rf7 {[%clk 00:49:01]}
{[%emt 00:05:00]} 22. Rg3 {[%clk 00:32:41]} {[%emt 00:06:01]} Qe6 {[%clk
00:48:39]} {[%emt 00:00:52]} 23. Nd5 {[%clk 00:28:26]} {[%emt 00:04:45]} Nxd5
{[%clk 00:47:01]} {[%emt 00:02:07]} 24. cxd5 {[%clk 00:28:35]} {[%emt
00:00:21]} Qf6 {[%clk 00:47:17]} {[%emt 00:00:13]} 25. Bg5 {[%clk 00:28:14]}
{[%emt 00:00:52]} Qxg5 {[%clk 00:47:26]} {[%emt 00:00:21]} 26. Rxg5 {[%clk
00:28:39]} {[%emt 00:00:05]} Bxg5 {[%clk 00:47:43]} {[%emt 00:00:13]} 27. Rg1
{[%clk 00:27:59]} {[%emt 00:01:10]} Bf4 {[%clk 00:47:57]} {[%emt 00:00:16]} 28.
Qf1 {[%clk 00:23:38]} {[%emt 00:04:50]} Bxh2 {[%clk 00:43:05]} {[%emt
00:05:23]} 29. Kxh2 {[%clk 00:23:34]} {[%emt 00:00:35]} Rxf3 {[%clk 00:42:44]}
{[%emt 00:00:51]} 30. Qg2 {[%clk 00:22:23]} {[%emt 00:01:41]} Rf7 {[%clk
00:42:59]} {[%emt 00:00:15]} 31. Qg6 {[%clk 00:20:23]} {[%emt 00:02:29]} Nf6
{[%clk 00:41:14]} {[%emt 00:02:15]} 32. f3 {[%clk 00:12:51]} {[%emt 00:08:03]}
Kf8 {[%clk 00:34:32]} {[%emt 00:07:12]} 33. Kg2 {[%clk 00:12:40]} {[%emt
00:00:41]} Re8 {[%clk 00:33:24]} {[%emt 00:01:38]} 34. Kf2 {[%clk 00:11:59]}
{[%emt 00:01:11]} Ree7 {[%clk 00:32:29]} {[%emt 00:01:25]} 35. Ke2 {[%clk
00:12:05]} {[%emt 00:00:24]} Ke8 {[%clk 00:32:44]} {[%emt 00:00:15]} 36. Rc1
{[%clk 00:10:27]} {[%emt 00:02:07]} a5 {[%clk 00:31:58]} {[%emt 00:01:17]} 37.
a3 {[%clk 00:10:33]} {[%emt 00:00:23]} Rc7 {[%clk 00:31:28]} {[%emt 00:01:00]}
38. b4 {[%clk 00:10:06]} {[%emt 00:00:57]} axb4 {[%clk 00:29:01]} {[%emt
00:02:57]} 39. axb4 {[%clk 00:10:26]} {[%emt 00:00:10]} b6 {[%clk 00:29:22]}
{[%emt 00:00:09]} 40. bxc5 {[%clk 00:08:45]} {[%emt 00:02:11]} Kd8 {[%clk
00:23:28]} {[%emt 00:06:24]} 41. Ra1 {[%clk 00:08:32]} {[%emt 00:00:44]} Kc8
{[%clk 00:23:05]} {[%emt 00:00:53]} 42. cxb6 {[%clk 00:07:01]} {[%emt
00:02:01]} Rcd7 {[%clk 00:23:03]} {[%emt 00:00:32]} 43. Qg1 {[%clk 00:05:49]}
{[%emt 00:01:43]} Kb8 {[%clk 00:21:25]} {[%emt 00:02:07]} 44. Qc1 {[%clk
00:05:14]} {[%emt 00:01:05]} 1-0